Cogmind - Beta 12 @@@ ROGUE MODE // 2023.11.23 @ 17:59:42 Player: Zeia Result: Self-destructed Performance ------------- Evolutions (1) 500 Regions Visited (2) 400 Robots Destroyed (8) 40 Value Destroyed (147) 147 Prototype IDs (2) 40 Alien Tech Used (0) 0 Bonus (0) 0 TOTAL SCORE: 1127 Bonus ------- None Cogmind --------- Core Integrity 87/400 Matter 300/300 Energy 99/100 System Corruption 0% Temperature Cool (0) Movement Core (50) Location -9/Materials Parts ------- > --- POWER (1) -------- (None) > --- PROPULSION (3) --- (None) > --- UTILITY (3) ------ (None) > --- WEAPON (2) ------- (None) > --- INVENTORY (5) ---- Aluminum Leg Wheel Medium Storage Unit Large Storage Unit ECM Suite Peak State ------------ > --- POWER ------------ Light Ion Engine > --- PROPULSION ------- Improved Hover Unit Improved Hover Unit Improved Hover Unit > --- UTILITY ---------- Heat Sink Medium Storage Unit Signal Interpreter > --- WEAPON ----------- Light Assault Rifle Light Assault Rifle > --- INVENTORY -------- Aluminum Leg Aluminum Leg Aluminum Leg Wheel Hover Unit Cooling System High-capacity Storage Unit Light Armor Plating Light Armor Plating [Rating: 13] Favorites ----------- Power Light Ion Engine Engine Light Ion Engine Propulsion Aluminum Leg Leg Aluminum Leg Hover Unit Improved Hover Unit Utility Heat Sink Device Heat Sink Storage Medium Storage Unit Processor Signal Interpreter Weapon Light Assault Rifle Ballistic Gun Light Assault Rifle Build | -11 -10 -9 ------- Run | Jun Mat Mat Slots Evolved 2 | . . 2 Power . | . . . Propulsion 1 | . . 1 Utility 1 | . . 1 Weapon . | . . . Parts Attached 12 | 6 4 2 Power 1 | 1 . . Engine 1 | 1 . . Core . | . . . Reactor . | . . . Propulsion 6 | 2 3 1 Treads . | . . . Leg 3 | 2 1 . Wheel . | . . . Hover 3 | . 2 1 Flight . | . . . Utility 3 | 1 1 1 Device 1 | 1 . . Storage 1 | . 1 . Processor 1 | . . 1 Hackware . | . . . Protection . | . . . Artifact . | . . . Weapon 2 | 2 . . Energy Gun . | . . . Energy Cannon . | . . . Ballistic Gun 2 | 2 . . Ballistic Cannon . | . . . Launcher . | . . . Special Weapon . | . . . Impact Weapon . | . . . Slashing Weapon . | . . . Piercing Weapon . | . . . Special Melee Weapon . | . . . Unidentified Prototypes . | . . . Parts Lost 5 | . 1 4 Power 1 | . . 1 Propulsion 3 | . 1 2 Utility . | . . . Weapon 1 | . . 1 Highest Loss Streak 4 | . 1 4 To Critical Strikes . | . . . Average Slot Usage (%) 91 | . 96 81 Engine 11 | . 14 7 Leg 13 | . 20 . Hover 13 | . 7 26 Device 12 | . 14 10 Storage 11 | . 11 10 Processor 2 | . . 9 Ballistic Gun 25 | . 28 18 Naked Turns 25 | . . 25 Heaviest Build 16 | 6 16 16 Greatest Support 21 | 20 20 21 Greatest Overweight (x) 1 | . 1 1 Average Overweight (x) . | . . . Largest Inventory Capacity 10 | 5 10 10 Average Capacity 8 | 5 9 9 Most Carried 10 | 3 9 10 Average Carried 6 | 1 6 8 Final Capacity 10 | 5 10 5 Final Carried 9 | 3 9 5 Class Distribution -------------------- 100% | Mutant Dominant Class ---------------- Mutant | -10/Materials Mutant | -9/Materials Resources | -11 -10 -9 ----------- Run | Jun Mat Mat Matter Collected 388 | 260 101 27 Remotely . | . . . Salvage Created 215 | 47 113 55 Parts 13 | 3 9 1 Haulers Intercepted . | . . . Recyclers Shooed . | . . . Parts Field Recycled . | . . . Retrieved Matter . | . . . Parts Self-Destructed . | . . . Prevented . | . . . Kills | -11 -10 -9 ------- Run | Jun Mat Mat Combat Hostiles Destroyed 7 | 1 5 1 Guns 7 | 1 5 1 Classes Destroyed 3 | 1 2 . Watcher 1 | . 1 . Swarmer 5 | . 5 . Grunt 2 | 1 . 1 Best Kill Streak 2 | 1 2 1 Combat Bots Only 2 | 1 2 1 Max Kills in Single Turn 1 | 1 1 1 Gunslinging . | . . . Exploded . | . . . Melee . | . . . Uniques/NPCs Destroyed . | . . . Combat | -11 -10 -9 -------- Run | Jun Mat Mat Damage Taken 890 | 66 350 474 Core 399 | . 86 313 Absorbed by Shields . | . . . Core Remaining (%) 82 | 100 65 . Volleys Fired 44 | 5 28 11 Largest 2 | 2 2 2 Hottest 40 | 40 40 40 Shots Fired 88 | 10 56 22 Gun 88 | 10 56 22 Cannon . | . . . Launcher . | . . . Special . | . . . Kinetic 88 | 10 56 22 Thermal . | . . . Explosive . | . . . Electromagnetic . | . . . Robot Hit Streak 11 | 7 8 11 Robot Miss Streak 3 | 1 3 2 Penetration Max . | . . . Secondary Targets 1 | . 1 . Max Gunslinging Chain 1 | . 1 . Shots Hit Robots 60 | 8 34 18 Core Hits 17 | 2 9 6 Critical Kills . | . . . Critical Parts Destroyed . | . . . Critical Strikes . | . . . Melee Attacks . | . . . Impact . | . . . Slashing . | . . . Piercing . | . . . Sneak Attacks . | . . . Combat Hostiles . | . . . Follow-up Attacks . | . . . Damage Inflicted 521 | 71 293 157 Guns 512 | 71 293 148 Cannons . | . . . Explosions . | . . . Melee . | . . . Ramming 9 | . . 9 Kinetic 512 | 71 293 148 Thermal . | . . . Explosive . | . . . Electromagnetic . | . . . Impact . | . . . Slashing . | . . . Piercing . | . . . Highest Corruption . | . . . Average Corruption . | . . . Corruption Purged . | . . . Corruption Blocked . | . . . Overload Shots . | . . . Overflow Damage . | . . . Projectiles . | . . . Explosions . | . . . Melee . | . . . Knockbacks . | . . . Impact . | . . . Kinetic . | . . . Secondary . | . . . Self-Inflicted Damage 4 | . . 4 Shots . | . . . Rammed 2 | . . 2 Targets Rammed 2 | . . 2 Kicked . | . . . Crushed . | . . . Highest Temperature 12 | 12 . . Average Temperature 7 | 7 . . Received Heat Transfer 201 | 36 . 165 Siege Activations . | . . . Robots Corrupted . | . . . Combat Hostiles . | . . . Parts Fried . | . . . Impact Corruptions . | . . . Robots Melted . | . . . Combat Hostiles . | . . . Parts Melted . | . . . Heat Transferred . | . . . Parts Sabotaged . | . . . Parts Stolen . | . . . Parts Stripped . | . . . Power Chain Reactions . | . . . Missiles Intercepted . | . . . Alert | -11 -10 -9 ------- Run | Jun Mat Mat Peak Influence 119 | 20 119 55 Initial 33 | . 13 33 Average 35 | 2 48 23 Maximum Alert Level . | . . . Low Security (%) 100 | 100 100 100 Level 1 . | . . . Level 2 . | . . . Level 3 . | . . . Level 4 . | . . . Level 5 . | . . . High Security . | . . . Max Security . | . . . Squads Dispatched 3 | . 2 1 Investigation 1 | . . 1 Extermination . | . . . Reinforcement 2 | . 2 . Assault . | . . . Garrison . | . . . Intercept . | . . . Searches Triggered . | . . . Construction Impeded . | . . . Haulers Reinforced . | . . . Active Scanning Responses . | . . . Cargo Convoy Interrupts . | . . . Stealth | -11 -10 -9 --------- Run | Jun Mat Mat Distress Signals 1 | . 1 . Communications Jammed . | . . . Distress Signals . | . . . Times Spotted 29 | 1 13 15 Peak Tracking Total 14 | 1 3 14 Tactical Retreats 4 | . 3 1 Traps | -11 -10 -9 ------- Run | Jun Mat Mat Traps Triggered . | . . . Indirectly . | . . . Trap Hack Attempts . | . . . Triggered . | . . . Disarmed . | . . . Reprogrammed . | . . . Reused . | . . . Traps Extracted . | . . . Installed . | . . . Triggered . | . . . Machines | -11 -10 -9 ---------- Run | Jun Mat Mat Machines Disabled . | . . . Max in Single Turn . | . . . Machines Repaired . | . . . Machines Sabotaged . | . . . Overloaded Fab Kills . | . . . Hacking | -11 -10 -9 --------- Run | Jun Mat Mat Machines Accessed 9 | . 6 3 Terminals 7 | . 4 3 Fabricators . | . . . Repair Stations . | . . . Recycling Units 2 | . 2 . Scanalyzers . | . . . Garrison Access . | . . . Total Hacks 25 | . 12 13 Successful 16 | . 8 8 Failed 9 | . 4 5 Catastrophic 2 | . 2 . Database Lockouts . | . . . Manual 13 | . 6 7 Terminals 22 | . 9 13 Fabricators . | . . . Repair Stations . | . . . Recycling Units 3 | . 3 . Scanalyzers . | . . . Garrison Access . | . . . Terminal Hacks 6 | . 1 5 Record 1 | . . 1 Prototype ID Bank 1 | . . 1 Terminal Index 1 | . . 1 Unreport Threat 1 | . . 1 Locate Traps 1 | . . 1 Hauler Manifests 1 | . 1 . Fabricator Hacks . | . . . Repair Station Hacks . | . . . Recycling Unit Hacks 3 | . 3 . Report Inventory 2 | . 2 . Retrieve Components 1 | . 1 . Scanalyzer . | . . . Garrison Access Hacks . | . . . Unauthorized Hacks 7 | . 4 3 Terminals 7 | . 4 3 Botnet 7 | . 4 3 Fabricators . | . . . Repair Stations . | . . . Recycling Units . | . . . Scanalyzers . | . . . Garrison Access . | . . . Data Cores Recovered . | . . . Used . | . . . Hacking Detections 6 | . 4 2 Full Trace Events 2 | . 1 1 Feedback Events . | . . . Feedback Blocked . | . . . Robot Schematics Acquired . | . . . Robots Built . | . . . Authchips . | . . . Time . | . . . Total Robot Build Rating . | . . . Part Schematics Acquired . | . . . Parts Built . | . . . Authchips . | . . . Time . | . . . Total Part Build Rating . | . . . Parts Repaired . | . . . Time . | . . . Parts Recycled . | . . . Recycled Matter . | . . . Retrieved Matter . | . . . Retrieved Components 7 | . 7 . Parts Scanalyzed . | . . . Part Schematics Acquired . | . . . Parts Damaged . | . . . Bothacking | -11 -10 -9 ------------ Run | Jun Mat Mat Used RIF Installer . | . . . Robots Hacked . | . . . Non-combat . | . . . Combat . | . . . Robot Hacks Applied . | . . . Relay Couplers Released . | . . . Fabnet Peak Effective % . | . . . Robots Rewired . | . . . Allies Hacked . | . . . Hacks Repelled . | . . . Allies | -11 -10 -9 -------- Run | Jun Mat Mat Total Allies . | . . . Largest Group . | . . . Highest-Rated Group . | . . . Highest-Rated Ally . | . . . Total Orders . | . . . Ally Attacks . | . . . Total Damage . | . . . Kills . | . . . Allies Corrupted . | . . . Allies Melted . | . . . Intel | -11 -10 -9 ------- Run | Jun Mat Mat Robot Analysis Total . | . . . Derelict Logs Recovered . | . . . Drone Launches . | . . . Drone Recoveries . | . . . Exploration | -11 -10 -9 ------------- Run | Jun Mat Mat Turns Passed 806 | 101 479 226 Spaces Moved 693 | 67 320 306 Core 60 | 15 . 45 Treads . | . . . Legs 287 | 52 235 . Wheels . | . . . Hover 346 | . 85 261 Flight . | . . . Fastest Speed 50 | 50 116 50 Average Speed 90 | 104 118 56 Slowest Speed 120 | 120 120 120 Overloaded Moves . | . . . Propulsion Burnouts . | . . . Robots Hopped . | . . . Cave-ins Triggered . | . . . Exploration Rate (%) 29 | 6 54 27 Regions Visited 2 Branch Regions . Pre-discovered Areas . | . . . Known Exits Taken . | . . . Unknown Exits Taken 2 | 1 1 . Scrap Searched . | . . . Spaces Dug . | . . . Terrain Destroyed . | . . . Melee . | . . . Projectile . | . . . AOE . | . . . Terrain Rammed . | . . . Walls Destroyed . | . . . Machines Disabled . | . . . Actions | -11 -10 -9 --------- Run | Jun Mat Mat Total 801 | 87 373 341 Wait 31 | 7 11 13 Move 691 | 66 319 306 Hop . | . . . Pick Up 17 | 3 9 5 Fast Attach 7 | 6 1 . Attach 3 | . 1 2 Detach . | . . . Swap 2 | . 2 . Drop 4 | . 2 2 Fire 44 | 5 28 11 Melee . | . . . Ram 2 | . . 2 Kick . | . . . Crush . | . . . Escape Stasis . | . . . Rewire . | . . . Trap . | . . . Miscellaneous . | . . . Route ------- -11/Junkyard -10/Materials (discovered 2 exits: *Mat / [*Min]) -9/Materials History --------- Turn | Location | Event 2 | -11/Junkyard | Met Revision 17 68 | -11/Junkyard | Discovered new exit (range 8) 102 | -11/Junkyard | Entered Materials 225 | -10/Materials | Discovered new exit (range 16) 240 | -10/Materials | Discovered new exit (range 16) 317 | -10/Materials | Build established: Mutant 581 | -10/Materials | Entered another Materials area 581 | -9/Materials | Evolved 2 slots: Propulsion x1, Utility x1 782 | -9/Materials | Released all parts (5) 786 | -9/Materials | Lost 4 parts (1p2n1w) 786 | -9/Materials | Core integrity fell below 50% 807 | -9/Materials | Self-destructed Last Messages --------------- Awaiting botnet instructions. 00703_ Connecting with Terminal... 00703_ ALERT: Suspicious activity at Terminal M007. Dispatching Investigation squad. 00726_ Lgt. Ion Engine destroyed. 00742_ Imp. Hover Unit destroyed. 00747_ G-47 Trooper destroyed. 00753_ Lgt. Assault Rifle destroyed. 00754_ Acquired 27 matter. 00755_ Imp. Hover Unit destroyed. 00760_ R-06 Scavenger collects Particle Gun. 00782_ Released Signal Interpreter. 00782_ Released Imp. Hover Unit. 00782_ Released Med. Storage Unit. 00782_ Released Lgt. Assault Rifle. 00782_ Released Heat Sink. 00782_ Slammed into S-10 Pest. Ramming works as a last resort when unarmed or blocked, but can have serious negative consequences. 00785_ Slammed into S-10 Pest. Map ----- +----------------------------------------------------+ | ?????????????????????????????????????????????????? | | ?????????????????????????????????????????????????? | | ?????????????????????????????????????????????????? | | ?????????????????????????????????????????????????? | | ?????????????????????????????????????????????????? | | ?????????????????????????????????????????????????? | | ?????????????????????????????????????????????????? | | ?????????????????????????????????????????????????? | | ?????????????????????????????????????????????????? | | ?????????????????????????????????????????????????? | | ?????????????????????????????????????????????????? | | ?????????????????????????????????????????????????? | | ?????????????????????????????????????????????????? | | ?????????????????????????????????????????????????? | | ?????| ??????????????????????????????????????????? | | ?????? ??????????????????????????????????????????? | | ?????? ?????????????????????????????????????????? | | ??????# ??######?????????????????????????????????? | | ??????# ?# ?????????????????????????????????? | | ??????+ ?# """?????????????????#????????????????? | | ??????# ?# """?????????????### ####?????????????? | | ??????# ? ""????????????? Y ??????????????? | | ??????# ? ????????????? """ #?????????????? | | ??????# ##+############# R" ??????????????? | | ??????# s # """ #?????????????? | | ??????# ss @ !] #?????????????? | | ??????# " """"" ""# !] #?????????????? | | ??????# """"""""" Y"# / #?????????????? | | ??????# """ """ ""#? #?????????????? | | ??????+ #?#########?????????????? | | ??????# ????????????????????? | | ??????# ###########+#?????????????????????? | | ??????# ###+########???????????????????????????? | | ??????# ## #???????????????????????????? | | ####### ## #???????????????????????????? | | """ ## ## #???????????????????????????? | | "T" ## ## #???????????????????????????? | | # ##/#########??????????????????????????? | | # +??????????????????????????? | | + T ######???????????????????????????? | | """ # #????????????????????????????????? | | """ # ###+##????????????????????????????????? | | """ ## ##?????????????????????????????????????? | | ## #??????????????????????????????????????? | | ##/#### #??????????????????????????????????????? | | ?# #??# #??????????????????????????????????????? | | ?# #?## ##??????? ????????????????????????????? | | ## ### #??? ????????????????????????????? | | # #???????????????????????????? | | / #???????????????????????????? | +----------------------------------------------------+ Best States ------------- Heat Dissipation 38 Energy Generation 10 Energy Capacity 125 Matter Stores 300 Matter Capacity 300 Sight Range 16 Terrain Scan Density 10 Evasion (%) 55 Item Schematics ----------------- None Robot Schematics ------------------ None Fabricated ------------ Nothing Alien Tech Used ----------------- None Achievements -------------- None Challenges ------------ None Game ------ Seed SegregatorCoreProjector Manual? 0 Play Time 00:12:12 Cumulative 12.3 hours Start 2023.11.23 @ 17:40:26 End 2023.11.23 @ 17:59:42 Sessions 3 Manual Loads 0 Difficulty Rogue Special Mode None Game No. 11 Rogue 11 Adventurer 0 Explorer 0 Win Type - Total 0 Types 0/0/0/0/0/0/0/0/0 Lore% 15 Gallery% 17 Achievement% 19 Wizard Run 0 Options --------- ASCII 0 Keyboard 1 Movement Vi Keybinds 0 Fullscreen 1 Font 18/X11 Map View 76x50 Tactical HUD 1 Map Filters NONE Filters NONE Steam 1 RUN: 9f43b566-2bf9-4ea6-8c1e-b2814ea6120c